[Event "GER-chW 2019"]
[Site "Magdeburg"]
[Date "2019.05.31"]
[Round "8.7"]
[White "Kopylov, Luba"]
[Black "Ries, Jutta"]
[Result "0-1"]
[ECO "A45"]
[WhiteElo "2078"]
[BlackElo "2017"]
[Annotator "NA"]
[PlyCount "124"]
[EventDate "2019.05.26"]
[EventType "tourn"]
[EventCountry "GER"]
[SourceTitle "playchess.com"]
[Source "ChessBase"]
[SourceQuality "1"]
[TimeControl "40/5400+30:1800+30"]

1. d4 {[%emt 0:00:00]} Nf6 {[%emt 0:00:00]} 2. g3 {[%emt 0:00:00]} d5 {[%emt 0:00:25]} 3. c4 {[%emt 0:00:38]} c6 {[%emt 0:00:35]} 4. Bg2 {[%emt 0:01:20]} Nbd7 {[%emt 0:06:21]} 5. Nf3 {[%emt 0:04:28]} g6 {[%emt 0:04:19]} 6. O-O {[%emt 0:04:20] D00: 1 d4 d5: Unusual lines} dxc4 {[%emt 0:02:44]} 7. Qc2 {[%emt 0:01:53]} Nb6 {[%emt 0:00:45]} 8. Nbd2 {[%emt 0:03:57]} Bg7 {[%emt 0:09:43]} 9. Nxc4 {[%emt 0:09:02]} Bf5 {[%emt 0:01:58]} 10. Qb3 $146 {[%emt 0:01:26]} ({Predecessor:} 10. Qc3 Nxc4 11. Qxc4 O-O 12. Rd1 a5 13. Qb3 {½-½ (38) Grischuk,A (2764)-Aronian,L (2809) London 2013}) 10... Be6 {[%emt 0:09:38]} 11. Nfe5 {[%emt 0:00:32]} Qxd4 {[%emt 0:09:21]} 12. Be3 {[%emt 0:03:02]} Bxc4 {[%emt 0:02:10]} 13. Bxd4 {[%emt 0:00:50]} Bxb3 {[%emt 0:00:06]} 14. axb3 {[%emt 0:05:05]} O-O {[%emt 0:04:49]} 15. Bc5 {[%emt 0:12:23]} Nfd7 {[%emt 0:23:01]} 16. Nxd7 {[%emt 0:05:28]} Nxd7 {[%emt 0:00:08]} 17. Bxe7 {[%emt 0:04:47]} Rfe8 {[%emt 0:00:23]} 18. Ba3 {[%emt 0:00:18]} Rxe2 {[%emt 0:03:26]} 19. Rfd1 {[%emt 0:00:24]} Nb6 {[%emt 0:08:55]} 20. Bc5 {[%emt 0:04:23]} Ree8 {[%emt 0:00:34]} 21. Ra2 {[%emt 0:03:32]} Bf6 {[%emt 0:07:07]} 22. Rda1 {[%emt 0:02:16]} Nc8 {[%emt 0:01:04]} 23. Bh3 {[%emt 0:06:20]} a6 {[%emt 0:02:35]} 24. Rd1 {[%emt 0:01:35]} Rd8 {[%emt 0:00:01]} 25. Raa1 {[%emt 0:00:21]} Ne7 {[%emt 0:01:08]} 26. Bb6 {[%emt 0:00:46]} Rxd1+ {[%emt 0:00:08]} 27. Rxd1 {[%emt 0:00:05]} Nd5 {[%emt 0:00:10]} 28. Bd4 {[%emt 0:01:45]} Bxd4 {[%emt 0:00:21]} 29. Rxd4 {[%emt 0:00:05]} f5 {[%emt 0:00:47]} 30. g4 {[%emt 0:01:36]} fxg4 {[%emt 0:00:45]} 31. Bxg4 {[%emt 0:00:06]} Kf7 {[%emt 0:00:59]} 32. Kg2 {[%emt 0:00:20]} Rd8 {[%emt 0:00:47]} 33. Kg3 {[%emt 0:00:58]} Kf6 {[%emt 0:00:22]} 34. f4 {[%emt 0:00:31]} Re8 {[%emt 0:00:21]} 35. Kf2 {[%emt 0:00:45]} h5 {[%emt 0:00:59]} 36. Bf3 {[%emt 0:00:25]} Rd8 {[%emt 0:00:24]} 37. Be4 {[%emt 0:00:21]} Rd6 {[%emt 0:00:27]} 38. Kf3 {[%emt 0:02:38]} Ke7 {[%emt 0:00:24]} 39. Rd2 {[%emt 0:00:59]} Kf6 {[%emt 0:00:33]} 40. Rg2 {[%emt 0:00:41]} Ne7 {[%emt 0:00:14]} 41. Ke3 {[%emt 0:31:35]} Nf5+ {[%emt 0:07:32]} 42. Bxf5 {[%emt 0:00:00]} Kxf5 {[%emt 0:00:55]} 43. Rg5+ {[%emt 0:00:00]} Kf6 {[%emt 0:00:06]} 44. h4 {[%emt 0:00:00]} Rd1 {[%emt 0:12:21]} 45. f5 {[%emt 0:00:00]} Rd5 {[%emt 0:10:47]} 46. Rxg6+ {[%emt 0:00:00]} Kxf5 {[%emt 0:00:01]} 47. Rg5+ {[%emt 0:00:00]} Kf6 {[%emt 0:00:01]} 48. Rg3 {[%emt 0:00:00]} Rb5 {[%emt 0:00:09]} 49. Kd2 {[%emt 0:00:00]} Rb4 {[%emt 0:00:33]} 50. Rh3 {[%emt 0:00:00]} Kf5 {[%emt 0:01:07]} 51. Kc3 {[%emt 0:00:00]} a5 {[%emt 0:00:54]} 52. Rg3 {[%emt 0:02:06]} Rxh4 {[%emt 0:00:25]} 53. Rg8 {[%emt 0:00:44]} Rb4 {[%emt 0:00:28]} 54. Kc2 {[%emt 0:00:12]} h4 {[%emt 0:00:32]} 55. Kc3 {[%emt 0:00:03]} Kf4 {[%emt 0:00:36]} 56. Ra8 $19 {[%emt 0:01:12]} b6 {[%emt 0:00:16]} 57. Rc8 {[%emt 0:00:44]} c5 {[%emt 0:00:20]} 58. Rh8 {[%emt 0:01:44]} Kg3 {[%emt 0:00:19]} 59. Rh7 {[%emt 0:00:41]} h3 {[%emt 0:00:21]} 60. Rh6 {[%emt 0:00:04]} h2 {[%emt 0:00:32]} 61. Rh7 {[%emt 0:00:12]} Rh4 {[%emt 0:00:20]} 62. Rg7+ {[%emt 0:00:05]} Kh3 {[%emt 0:00:06] Kd4} 0-1

[Event "GER-chW 2019"]
[Site "Magdeburg"]
[Date "2019.05.31"]
[Round "8.8"]
[White "Freter, Anke"]
[Black "Braun, Kristin"]
[Result "0-1"]
[ECO "B75"]
[WhiteElo "1873"]
[BlackElo "1895"]
[Annotator "NA"]
[PlyCount "64"]
[EventDate "2019.05.26"]
[EventType "tourn"]
[EventCountry "GER"]
[SourceTitle "playchess.com"]
[Source "ChessBase"]
[SourceQuality "1"]
[TimeControl "40/5400+30:1800+30"]

1. e4 {[%emt 0:00:00]} c5 {[%emt 0:00:00]} 2. Nf3 {[%emt 0:00:00]} d6 {[%emt 0:00:00]} 3. d4 {[%emt 0:00:00]} cxd4 {[%emt 0:00:00]} 4. Nxd4 {[%emt 0:00:00]} Nf6 {[%emt 0:00:00]} 5. Nc3 {[%emt 0:00:00]} g6 {[%emt 0:00:00]} 6. Be3 {[%emt 0:01:22]} Bg7 {[%emt 0:00:00]} 7. f3 {[%emt 0:00:25]} Nc6 {[%emt 0:00:00]} 8. Qd2 {[%emt 0:04:16]} O-O {[%emt 0:00:00]} 9. g4 {[%emt 0:01:09]} Ne5 {[%emt 0:09:30]} 10. Be2 {[%emt 0:05:42]} Bd7 {[%emt 0:09:01]} 11. Bh6 {[%emt 0:08:47]} Qb6 {[%emt 0:12:52]} 12. Bxg7 {[%emt 0:01:08]} Kxg7 {[%emt 0:01:27]} 13. h4 {[%emt 0:07:45]} h5 {[%emt 0:07:18]} 14. g5 {[%emt 0:03:35]} Ne8 {[%emt 0:02:48]} 15. f4 {[%emt 0:02:47]} Ng4 {[%emt 0:04:14]} 16. Bxg4 {[%emt 0:12:39]} Bxg4 {[%emt 0:00:46]} 17. f5 {[%emt 0:03:18]} Rc8 {[%emt 0:05:30]} 18. Nd5 {[%emt 0:06:06]} Qxb2 {[%emt 0:06:29]} 19. O-O {[%emt 0:04:30]} Rc4 {[%emt 0:04:54]} 20. Rab1 {[%emt 0:09:33]} Qxd4+ {[%emt 0:00:34]} 21. Qxd4+ {[%emt 0:00:07]} Rxd4 {[%emt 0:00:11]} 22. Rxb7 {[%emt 0:01:47]} Rxe4 {[%emt 0:04:29]} 23. Nxe7 {[%emt 0:04:05]} Bxf5 {[%emt 0:01:25]} 24. Nxf5+ {[%emt 0:00:58]} gxf5 {[%emt 0:00:03]} 25. Rxa7 {[%emt 0:00:43]} Rg4+ {[%emt 0:00:31]} 26. Kf2 {[%emt 0:00:22]} Rxh4 {[%emt 0:00:51]} 27. Ke3 {[%emt 0:00:42]} Rc4 {[%emt 0:01:17]} 28. Kd3 {[%emt 0:00:50]} Rc5 {[%emt 0:00:17]} 29. a4 {[%emt 0:01:19]} Nc7 {[%emt 0:00:51]} 30. Rb1 {[%emt 0:00:40]} Ne6 {[%emt 0:00:42]} 31. a5 {[%emt 0:01:14]} Rfc8 {[%emt 0:00:09]} 32. Rb2 {[%emt 0:00:24]} Rc3+ {[%emt 0:00:57] Kd4} 0-1

[Event "GER-chW 2019"]
[Site "Magdeburg"]
[Date "2019.05.31"]
[Round "8.9"]
[White "Bashylina, Luisa"]
[Black "Just, Anita"]
[Result "1-0"]
[ECO "C07"]
[WhiteElo "1812"]
[BlackElo "1866"]
[Annotator "NA"]
[PlyCount "69"]
[EventDate "2019.05.26"]
[EventType "tourn"]
[EventCountry "GER"]
[SourceTitle "playchess.com"]
[Source "ChessBase"]
[SourceQuality "1"]
[TimeControl "40/5400+30:1800+30"]

1. e4 {[%emt 0:00:00]} e6 {[%emt 0:00:00]} 2. d4 {[%emt 0:00:00]} d5 {[%emt 0:00:00]} 3. Nd2 {[%emt 0:00:00]} c5 {[%emt 0:00:00]} 4. exd5 {[%emt 0:00:00]} Qxd5 {[%emt 0:00:00]} 5. Ngf3 {[%emt 0:00:06]} cxd4 {[%emt 0:00:18]} 6. Bc4 {[%emt 0:00:16]} Qd6 {[%emt 0:00:11]} 7. O-O {[%emt 0:01:09]} Nc6 {[%emt 0:03:20]} 8. Nb3 {[%emt 0:00:33]} a6 {[%emt 0:02:38]} 9. Nbxd4 {[%emt 0:00:37]} Nxd4 {[%emt 0:00:14]} 10. Nxd4 {[%emt 0:00:20]} Qc7 {[%emt 0:00:16]} 11. b3 {[%emt 0:01:41]} Bd6 {[%emt 0:03:59]} 12. Nf3 {[%emt 0:02:53]} Nf6 {[%emt 0:07:41]} 13. Bb2 {[%emt 0:02:00]} Bd7 {[%emt 0:09:23]} 14. h3 {[%emt 0:05:17]} O-O-O {[%emt 0:06:54]} 15. Qe2 {[%emt 0:08:22]} Bc6 {[%emt 0:11:38]} 16. Ne5 {[%emt 0:06:26]} Bxe5 {[%emt 0:08:24]} 17. Bxe5 {[%emt 0:01:35]} Qa5 {[%emt 0:01:04]} 18. Qe3 {[%emt 0:21:08]} Nd7 {[%emt 0:14:15]} 19. Bd4 {[%emt 0:05:28]} e5 {[%emt 0:06:48]} 20. Bc3 {[%emt 0:01:30]} Qc7 {[%emt 0:07:20]} 21. Bxf7 {[%emt 0:03:41]} Rhf8 {[%emt 0:01:29]} 22. Be6 {[%emt 0:01:11]} Rfe8 {[%emt 0:01:45]} 23. Bxe5 {[%emt 0:02:08]} Rxe6 {[%emt 0:02:08]} 24. Bxc7 {[%emt 0:00:10]} Rxe3 {[%emt 0:00:04]} 25. Bxd8 {[%emt 0:00:53]} Re6 {[%emt 0:02:28]} 26. Ba5 {[%emt 0:06:07]} Rg6 {[%emt 0:01:27]} 27. f3 {[%emt 0:01:11]} Ne5 {[%emt 0:02:31]} 28. Kh2 {[%emt 0:01:31]} Nd7 {[%emt 0:01:26]} 29. Rfe1 {[%emt 0:01:25]} Nf6 {[%emt 0:00:40]} 30. Rad1 {[%emt 0:00:28]} Bd7 {[%emt 0:04:24]} 31. Re7 {[%emt 0:00:54]} Rg5 {[%emt 0:00:43]} 32. Bc3 {[%emt 0:05:35]} Nd5 {[%emt 0:01:13]} 33. Rxg7 {[%emt 0:00:27]} Nxc3 {[%emt 0:00:06]} 34. Rdxd7 {[%emt 0:00:13]} Rc5 {[%emt 0:00:16]} 35. Rdf7 {[%emt 0:00:41]} 1-0

[Event "GER-chW 2019"]
[Site "Magdeburg"]
[Date "2019.05.31"]
[Round "8.10"]
[White "Ley, Sabrina"]
[Black "Lowke, Kathrin"]
[Result "1-0"]
[ECO "B24"]
[WhiteElo "1870"]
[BlackElo "1887"]
[Annotator "NA"]
[PlyCount "69"]
[EventDate "2019.05.26"]
[EventType "tourn"]
[EventCountry "GER"]
[SourceTitle "playchess.com"]
[Source "ChessBase"]
[SourceQuality "1"]
[TimeControl "40/5400+30:1800+30"]

1. e4 {[%emt 0:00:00]} c5 {[%emt 0:00:00]} 2. Nc3 {[%emt 0:00:00]} Nc6 {[%emt 0:00:00]} 3. Bb5 {[%emt 0:00:00]} Nd4 {[%emt 0:00:46]} 4. Bc4 {[%emt 0:00:00]} e6 {[%emt 0:01:12]} 5. Nge2 {[%emt 0:00:00]} a6 {[%emt 0:06:56]} 6. a4 {[%emt 0:00:20]} Qc7 {[%emt 0:05:05]} 7. d3 {[%emt 0:02:39]} Ne7 {[%emt 0:00:56]} 8. O-O {[%emt 0:05:12]} Nec6 {[%emt 0:01:31]} 9. f4 {[%emt 0:05:52]} d6 {[%emt 0:02:01]} 10. Ng3 {[%emt 0:10:49]} g6 {[%emt 0:02:19]} 11. f5 {[%emt 0:15:19]} exf5 {[%emt 0:02:52]} 12. Nd5 {[%emt 0:05:59]} Qd8 {[%emt 0:00:20]} 13. c3 {[%emt 0:04:24]} Bg7 {[%emt 0:01:11]} 14. cxd4 {[%emt 0:09:09]} Nxd4 {[%emt 0:00:09]} 15. exf5 {[%emt 0:02:10]} Nxf5 {[%emt 0:05:00]} 16. Qe1+ {[%emt 0:03:29]} Kf8 {[%emt 0:06:56]} 17. Nxf5 {[%emt 0:06:02]} Bxf5 {[%emt 0:01:26]} 18. Ne3 {[%emt 0:03:00]} Qe7 {[%emt 0:06:38]} 19. Nxf5 {[%emt 0:01:24]} Qxe1 {[%emt 0:00:33]} 20. Rxe1 {[%emt 0:00:03]} gxf5 {[%emt 0:00:06]} 21. Rb1 {[%emt 0:06:52]} Be5 {[%emt 0:04:58]} 22. Bh6+ {[%emt 0:00:53]} Ke7 {[%emt 0:00:21]} 23. Bg7 {[%emt 0:00:51]} Rhg8 {[%emt 0:02:00]} 24. Bxe5 {[%emt 0:00:10]} dxe5 {[%emt 0:00:04]} 25. Rxe5+ {[%emt 0:00:05]} Kf6 {[%emt 0:02:41]} 26. Rxc5 {[%emt 0:00:35]} Rae8 {[%emt 0:00:09]} 27. Rf1 {[%emt 0:01:50]} Rg5 {[%emt 0:00:30]} 28. Rc7 {[%emt 0:02:16]} Re2 {[%emt 0:00:48]} 29. Rxf7+ {[%emt 0:01:44]} Kg6 {[%emt 0:00:06]} 30. g3 {[%emt 0:02:21]} Rxb2 {[%emt 0:00:48]} 31. Re1 {[%emt 0:01:07]} h6 {[%emt 0:02:41]} 32. Re6+ {[%emt 0:02:45]} Kh5 {[%emt 0:00:24]} 33. d4 {[%emt 0:00:45]} Rb1+ {[%emt 0:07:42]} 34. Kg2 {[%emt 0:01:04]} Rb2+ {[%emt 0:00:27]} 35. Be2+ {[%emt 0:00:07]} 1-0

[Event "GER-chW 2019"]
[Site "Magdeburg"]
[Date "2019.06.01"]
[Round "9.1"]
[White "Burchardt, Brigitte"]
[Black "Michna, Marta"]
[Result "0-1"]
[ECO "C05"]
[WhiteElo "2094"]
[BlackElo "2355"]
[Annotator "ChessBase"]
[PlyCount "134"]
[EventDate "2019.05.26"]
[EventType "tourn"]
[EventCountry "GER"]
[SourceTitle "playchess.com"]
[Source "ChessBase"]
[SourceQuality "1"]
[TimeControl "40/5400+30:1800+30"]

1. e4 {[%emt 0:00:00]} e6 {[%emt 0:00:00]} 2. d4 {[%emt 0:00:00]} d5 {[%emt 0:00:00]} 3. Nd2 {[%emt 0:00:00]} Nf6 {[%emt 0:00:03]} 4. e5 {[%emt 0:00:36]} Nfd7 {[%emt 0:00:04]} 5. Bd3 {[%emt 0:00:10]} c5 {[%emt 0:00:05]} 6. c3 {[%emt 0:00:05]} Nc6 {[%emt 0:00:03]} 7. Ne2 {[%emt 0:00:41]} a5 {[%emt 0:00:42]} 8. b3 {[%emt 0:05:44]} cxd4 {[%emt 0:00:32]} 9. cxd4 {[%emt 0:00:07]} Nb6 {[%emt 0:00:06]} 10. O-O {[%emt 0:01:06]} Bd7 {[%emt 0:00:17]} 11. a3 {[%emt 0:07:19]} Rc8 {[%emt 0:04:54]} 12. Bb2 {[%emt 0:02:06]} h5 {[%emt 0:07:58]} 13. Nf4 {[%emt 0:04:35]} a4 {[%emt 0:09:11]} 14. b4 {[%emt 0:04:09]} Na7 {[%emt 0:01:12]} 15. Qe2 {[%emt 0:06:25]} Be7 {[%emt 0:24:37]} 16. Ng6 {[%emt 0:16:41]} Rh6 {[%emt 0:00:11]} 17. Nxe7 {[%emt 0:00:36]} Qxe7 {[%emt 0:00:08]} 18. Rac1 {[%emt 0:02:55]} Kd8 {[%emt 0:09:52]} 19. Nb1 {[%emt 0:07:29]} Nc4 {[%emt 0:03:26]} 20. Bxc4 {[%emt 0:04:17]} dxc4 {[%emt 0:00:03]} 21. Rfd1 {[%emt 0:01:46]} b5 {[%emt 0:06:42]} 22. d5 {[%emt 0:01:22]} exd5 {[%emt 0:03:53]} 23. Nc3 {[%emt 0:01:40]} Ke8 {[%emt 0:03:52]} 24. Nxd5 {[%emt 0:01:14]} Qg5 {[%emt 0:00:20]} 25. Rc3 {[%emt 0:06:33]} h4 {[%emt 0:05:21]} 26. Bc1 {[%emt 0:01:31]} Qh5 {[%emt 0:00:04]} 27. Qd2 {[%emt 0:00:24]} Bc6 {[%emt 0:05:11]} 28. f3 {[%emt 0:00:49]} h3 {[%emt 0:05:12]} 29. g4 {[%emt 0:09:03]} Qh4 {[%emt 0:01:09]} 30. Qd4 {[%emt 0:00:36]} Re6 {[%emt 0:06:07]} 31. Nf4 {[%emt 0:02:59]} Re7 {[%emt 0:01:32]} 32. Qe3 {[%emt 0:04:51]} Qh6 {[%emt 0:02:23]} 33. Qf2 {[%emt 0:01:09]} Qh7 {[%emt 0:00:39]} 34. Be3 {[%emt 0:00:52]} Rd8 {[%emt 0:00:19]} 35. Rxd8+ {[%emt 0:02:19]} Kxd8 {[%emt 0:00:03]} 36. Bxa7 {[%emt 0:00:53]} Qb1+ {[%emt 0:00:21]} 37. Qf1 {[%emt 0:00:27]} Qxf1+ {[%emt 0:00:04]} 38. Kxf1 {[%emt 0:00:03]} Rxa7 {[%emt 0:00:03]} 39. Nxh3 {[%emt 0:00:24]} Re7 {[%emt 0:01:01]} 40. Re3 {[%emt 0:02:26]} Rd7 {[%emt 0:01:12]} 41. Ke2 {[%emt 0:33:15]} Ke7 {[%emt 0:01:52]} 42. Nf2 {[%emt 0:00:00]} Rd4 {[%emt 0:14:52]} 43. h4 {[%emt 0:00:00]} g6 {[%emt 0:01:25]} 44. Nh1 {[%emt 0:00:00]} Ke6 {[%emt 0:03:59]} 45. Ng3 {[%emt 0:00:00]} Rd3 {[%emt 0:00:03]} 46. f4 {[%emt 0:00:00]} Rb3 {[%emt 0:00:06]} 47. Kd2 {[%emt 0:00:00]} Bf3 {[%emt 0:02:28]} 48. f5+ {[%emt 0:00:00]} Kd5 {[%emt 0:04:56]} 49. fxg6 {[%emt 0:00:00]} fxg6 {[%emt 0:00:05]} 50. e6 {[%emt 0:00:00]} Bxg4 {[%emt 0:00:55]} 51. e7 {[%emt 0:01:19]} Bd7 {[%emt 0:00:29]} 52. h5 {[%emt 0:01:04]} gxh5 {[%emt 0:02:35]} 53. Nxh5 {[%emt 0:00:05]} Kd4 {[%emt 0:02:21]} 54. e8=Q {[%emt 0:01:53]} Bxe8 {[%emt 0:00:12]} 55. Rxe8 {[%emt 0:00:04]} c3+ {[%emt 0:00:08]} 56. Kc2 {[%emt 0:00:26]} Rxa3 {[%emt 0:00:07]} 57. Nf4 {[%emt 0:00:33]} Ra2+ {[%emt 0:00:10]} 58. Kb1 {[%emt 0:00:32]} Rb2+ {[%emt 0:00:34]} 59. Kc1 {[%emt 0:00:45]} a3 {[%emt 0:01:01]} 60. Ne2+ {[%emt 0:00:26]} Kd3 {[%emt 0:00:04]} 61. Nf4+ {[%emt 0:00:26]} Kc4 {[%emt 0:00:18]} 62. Rc8+ {[%emt 0:00:28]} Kb3 {[%emt 0:00:36]} 63. Nd5 {[%emt 0:02:49]} Rc2+ {[%emt 0:00:07]} 64. Kd1 {[%emt 0:00:19]} Rd2+ {[%emt 0:00:03]} 65. Kc1 {[%emt 0:00:42]} Rxd5 {[%emt 0:00:04]} 66. Ra8 {[%emt 0:00:34]} c2 {[%emt 0:00:27]} 67. Rd8 {[%emt 0:00:17]} a2 {[%emt 0:00:12]} 0-1

[Event "GER-chW 2019"]
[Site "Magdeburg"]
[Date "2019.06.01"]
[Round "9.2"]
[White "Schulze, Lara"]
[Black "Ries, Jutta"]
[Result "1-0"]
[ECO "B04"]
[WhiteElo "2160"]
[BlackElo "2017"]
[Annotator "ChessBase"]
[PlyCount "135"]
[EventDate "2019.05.26"]
[EventType "tourn"]
[EventCountry "GER"]
[SourceTitle "playchess.com"]
[Source "ChessBase"]
[SourceQuality "1"]
[TimeControl "40/5400+30:1800+30"]

1. e4 {[%emt 0:00:00]} Nf6 {[%emt 0:00:00]} 2. e5 {[%emt 0:00:00]} Nd5 {[%emt 0:00:03]} 3. d4 {[%emt 0:00:00]} d6 {[%emt 0:00:20]} 4. Nf3 {[%emt 0:00:00]} g6 {[%emt 0:00:28]} 5. Bc4 {[%emt 0:00:10]} Nb6 {[%emt 0:00:06]} 6. Bb3 {[%emt 0:00:07]} Bg7 {[%emt 0:01:50]} 7. O-O {[%emt 0:00:29]} O-O {[%emt 0:04:55]} 8. a4 {[%emt 0:00:44]} dxe5 {[%emt 0:20:05]} 9. Nxe5 {[%emt 0:00:14]} Bxe5 {[%emt 0:07:42]} 10. dxe5 {[%emt 0:01:57]} Qxd1 {[%emt 0:00:21]} 11. Rxd1 {[%emt 0:00:01]} Kg7 {[%emt 0:22:56]} 12. Nc3 {[%emt 0:09:34]} c6 {[%emt 0:07:06]} 13. Bf4 {[%emt 0:17:44]} Be6 {[%emt 0:12:06]} 14. Bxe6 {[%emt 0:05:59]} fxe6 {[%emt 0:00:02]} 15. Bg3 {[%emt 0:12:46]} Na6 {[%emt 0:09:20]} 16. a5 {[%emt 0:07:28]} Nd5 {[%emt 0:01:22]} 17. Ne4 {[%emt 0:02:37]} Rad8 {[%emt 0:01:50]} 18. Rd2 {[%emt 0:05:04]} Ndc7 {[%emt 0:03:23]} 19. Rad1 {[%emt 0:01:41]} Rxd2 {[%emt 0:00:05]} 20. Rxd2 {[%emt 0:00:05]} Nb8 {[%emt 0:00:44]} 21. f3 {[%emt 0:03:35]} b6 {[%emt 0:00:36]} 22. b4 {[%emt 0:06:41]} h6 {[%emt 0:01:06]} 23. Bf2 {[%emt 0:01:19]} Nd5 {[%emt 0:00:51]} 24. c4 {[%emt 0:04:23]} Nxb4 {[%emt 0:00:27]} 25. axb6 {[%emt 0:00:08]} axb6 {[%emt 0:00:03]} 26. Bxb6 {[%emt 0:00:33]} N4a6 {[%emt 0:01:00]} 27. Kf2 {[%emt 0:06:48]} Kf7 {[%emt 0:01:50]} 28. h4 {[%emt 0:02:52]} Rc8 {[%emt 0:00:19]} 29. Be3 {[%emt 0:03:51]} Kg7 {[%emt 0:01:32]} 30. g4 {[%emt 0:01:42]} Rf8 {[%emt 0:01:29]} 31. Kg3 {[%emt 0:00:30]} Rc8 {[%emt 0:00:18]} 32. h5 {[%emt 0:00:42]} g5 {[%emt 0:00:29]} 33. f4 {[%emt 0:00:37]} gxf4+ {[%emt 0:00:03]} 34. Bxf4 {[%emt 0:00:05]} Rh8 {[%emt 0:00:56]} 35. Be3 {[%emt 0:02:04]} c5 {[%emt 0:01:00]} 36. Nxc5 {[%emt 0:03:20]} Nxc5 {[%emt 0:00:18]} 37. Bxc5 {[%emt 0:00:05]} Rc8 {[%emt 0:00:39]} 38. Bxe7 {[%emt 0:00:11]} Rxc4 {[%emt 0:00:26]} 39. Bf6+ {[%emt 0:01:05]} Kf7 {[%emt 0:00:23]} 40. Rd8 {[%emt 0:01:14]} Rc3+ {[%emt 0:00:48]} 41. Kf2 {[%emt 0:10:27]} Nc6 {[%emt 0:10:26]} 42. Rh8 {[%emt 0:01:39]} Rc2+ {[%emt 0:02:25]} 43. Ke3 {[%emt 0:00:40]} Rc3+ {[%emt 0:01:21]} 44. Kd2 {[%emt 0:02:29]} Rg3 {[%emt 0:01:32]} 45. Rh7+ {[%emt 0:05:21]} Kf8 {[%emt 0:01:03]} 46. Rxh6 {[%emt 0:03:42]} Rxg4 {[%emt 0:02:12]} 47. Rh8+ {[%emt 0:02:10]} Kf7 {[%emt 0:00:08]} 48. Rh7+ {[%emt 0:02:12]} Kg8 {[%emt 0:05:20]} 49. Rc7 {[%emt 0:02:48]} Nxe5 {[%emt 0:04:40]} 50. Bxe5 {[%emt 0:00:53]} Rg5 {[%emt 0:00:02]} 51. Rc8+ {[%emt 0:00:25]} Kf7 {[%emt 0:00:12]} 52. h6 {[%emt 0:00:16]} Rh5 {[%emt 0:03:52]} 53. Bf4 {[%emt 0:01:55]} Kg6 {[%emt 0:02:31]} 54. Rg8+ {[%emt 0:01:22]} Kf7 {[%emt 0:01:25]} 55. Rg7+ {[%emt 0:00:40]} Kf6 {[%emt 0:00:12]} 56. Kd3 {[%emt 0:01:40]} e5 {[%emt 0:00:45]} 57. Be3 {[%emt 0:00:39]} Rh3 {[%emt 0:00:32]} 58. Ke4 {[%emt 0:00:22]} Rh4+ {[%emt 0:00:29]} 59. Kf3 {[%emt 0:00:41]} Rh1 {[%emt 0:00:29]} 60. Ra7 {[%emt 0:00:35]} Kg6 {[%emt 0:00:33]} 61. Ke4 {[%emt 0:00:27]} Rh3 {[%emt 0:00:19]} 62. Ra6+ {[%emt 0:00:22]} Kh7 {[%emt 0:00:32]} 63. Bg5 {[%emt 0:00:36]} Rh1 {[%emt 0:00:38]} 64. Kxe5 {[%emt 0:00:28]} Rf1 {[%emt 0:00:28]} 65. Ra7+ {[%emt 0:00:30]} Kg6 {[%emt 0:00:34]} 66. Rg7+ {[%emt 0:00:24]} Kh5 {[%emt 0:00:02]} 67. h7 {[%emt 0:00:43]} Rf5+ {[%emt 0:00:34]} 68. Ke4 1-0